[Event "26th OIBM 2023"]
[Site "Gmund am Tegernsee"]
[Date "2023.11.04"]
[Round "8.36"]
[White "Schoetzig, Detlef"]
[Black "Baerwinkel, Tobias"]
[Result "0-1"]
[ECO "D02"]
[WhiteElo "2078"]
[BlackElo "2315"]
[Annotator "ChessBase"]
[PlyCount "162"]
[EventDate "2023.10.04"]
[EventType "swiss"]
[EventCountry "GER"]
[SourceTitle "playchess.com"]
[Source "ChessBase"]
[SourceQuality "1"]
[TimeControl "40/5400+30:1800+30"]

1. d4 {[%emt 0:00:17]} Nf6 {[%emt 0:00:08]} 2. Nf3 {[%emt 0:00:07]} d5 {[%emt 0:00:12]} 3. g3 {[%emt 0:00:17]} c5 {[%emt 0:00:36]} 4. Bg2 {[%emt 0:00:18]} cxd4 {[%emt 0:00:23]} 5. O-O {[%emt 0:00:28]} h6 {[%emt 0:00:38]} 6. Nxd4 {[%emt 0:00:22]} e5 {[%emt 0:00:16]} 7. Nb3 {[%emt 0:01:16]} Nc6 {[%emt 0:02:53]} 8. c4 {[%emt 0:02:14]} Be6 {[%emt 0:04:19]} 9. cxd5 {[%emt 0:03:00]} Bxd5 {[%emt 0:00:30]} 10. Nc3 {[%emt 0:00:24]} Bxg2 {[%emt 0:00:32]} 11. Kxg2 {[%emt 0:00:05]} Bb4 {[%emt 0:03:17]} 12. Be3 {[%emt 0:03:34]} Bxc3 {[%emt 0:01:50]} 13. bxc3 {[%emt 0:00:06]} O-O {[%emt 0:01:56]} 14. Qc2 {[%emt 0:02:43]} Qd5+ {[%emt 0:03:31]} 15. f3 {[%emt 0:07:13]} Rfc8 {[%emt 0:07:57]} 16. Rfd1 {[%emt 0:05:15]} Qc4 {[%emt 0:02:49]} 17. Qd3 {[%emt 0:00:54]} Ne7 {[%emt 0:02:47]} 18. Rac1 {[%emt 0:05:35]} b6 {[%emt 0:02:43]} 19. Bf2 {[%emt 0:02:33]} e4 {[%emt 0:08:27]} 20. Qxc4 {[%emt 0:15:04]} exf3+ {[%emt 0:01:11]} 21. Kxf3 {[%emt 0:01:10]} Rxc4 {[%emt 0:00:05]} 22. Rd4 {[%emt 0:00:26]} Rac8 {[%emt 0:00:45]} 23. Rxc4 {[%emt 0:00:15]} Rxc4 {[%emt 0:00:04]} 24. Bd4 {[%emt 0:00:14]} Nfd5 {[%emt 0:04:14]} 25. e4 {[%emt 0:02:29]} Nc7 {[%emt 0:00:45]} 26. Ke3 {[%emt 0:00:51]} Nc6 {[%emt 0:03:20]} 27. Kd3 {[%emt 0:09:28]} Ra4 {[%emt 0:00:29]} 28. Rc2 {[%emt 0:00:17]} Ne6 {[%emt 0:00:38]} 29. Re2 {[%emt 0:12:11]} Kh7 {[%emt 0:02:48]} 30. Ke3 {[%emt 0:05:17]} Kg6 {[%emt 0:02:06]} 31. Rd2 {[%emt 0:13:00]} f6 {[%emt 0:02:19]} 32. Kf3 {[%emt 0:03:01]} h5 {[%emt 0:01:30]} 33. Ke3 {[%emt 0:03:15]} Kf7 {[%emt 0:00:46]} 34. Rf2 {[%emt 0:00:36]} Ke7 {[%emt 0:00:22]} 35. Kd3 {[%emt 0:00:48]} Ng5 {[%emt 0:02:28]} 36. Re2 {[%emt 0:02:26]} Nf7 {[%emt 0:00:29]} 37. Ke3 {[%emt 0:00:30]} Nd6 {[%emt 0:03:15]} 38. Kd3 {[%emt 0:00:50]} Ke6 {[%emt 0:00:03]} 39. Nc1 {[%emt 0:00:21]} Ne5+ {[%emt 0:00:49]} 40. Ke3 {[%emt 0:00:21]} Ndc4+ {[%emt 0:01:17]} 41. Kf2 {[%emt 0:30:31]} g5 {[%emt 0:39:30]} 42. h3 {[%emt 0:00:00]} g4 {[%emt 0:00:00]} 43. Kg2 {[%emt 0:00:00]} Nd6 {[%emt 0:00:00]} 44. hxg4 {[%emt 0:00:00]} hxg4 {[%emt 0:00:00]} 45. Kf2 {[%emt 0:00:00]} Nb5 {[%emt 0:00:00]} 46. Nb3 {[%emt 0:00:00]} Rc4 {[%emt 0:00:00]} 47. Re3 {[%emt 0:00:00]} Rc8 {[%emt 0:00:00]} 48. a4 {[%emt 0:00:00]} Nd6 {[%emt 0:00:00]} 49. Re2 {[%emt 0:00:00]} Ndc4 {[%emt 0:00:00]} 50. Kg2 {[%emt 0:00:00]} a5 {[%emt 0:00:00]} 51. Bg1 {[%emt 0:00:00]} Nd3 {[%emt 0:00:00]} 52. Nd4+ {[%emt 0:00:00]} Kd7 {[%emt 0:00:00]} 53. Nb5 {[%emt 0:00:00]} Rc6 {[%emt 0:00:40]} 54. Nd4 {[%emt 0:00:00]} Rd6 {[%emt 0:00:39]} 55. Nb5 {[%emt 0:00:00]} Re6 {[%emt 0:00:20]} 56. Nd4 {[%emt 0:00:00]} Re8 {[%emt 0:00:17]} 57. Nf5 {[%emt 0:00:00]} Kc6 {[%emt 0:02:01]} 58. Nh6 {[%emt 0:00:21]} Nce5 {[%emt 0:03:01]} 59. Bd4 {[%emt 0:00:40]} b5 {[%emt 0:00:36]} 60. axb5+ {[%emt 0:00:23]} Kxb5 {[%emt 0:00:06]} 61. Nf5 {[%emt 0:00:18]} Ra8 {[%emt 0:01:05]} 62. Ne3 {[%emt 0:02:49]} Ra6 {[%emt 0:05:04]} 63. Nd5 {[%emt 0:01:13]} Kc4 {[%emt 0:01:05]} 64. Nc7 {[%emt 0:04:39]} Rc6 {[%emt 0:00:42]} 65. Nd5 {[%emt 0:00:09]} Kb3 {[%emt 0:01:04]} 66. Nf4 {[%emt 0:00:44]} a4 {[%emt 0:01:05]} 67. Nxd3 {[%emt 0:00:23]} Nxd3 {[%emt 0:00:04]} 68. Re3 {[%emt 0:00:22]} Kc4 {[%emt 0:00:53]} 69. Re2 {[%emt 0:00:04]} a3 {[%emt 0:01:03]} 70. Rd2 {[%emt 0:00:20]} Ra6 {[%emt 0:00:44]} 71. Ra2 {[%emt 0:00:05]} Nc1 {[%emt 0:00:45]} 72. Rc2 {[%emt 0:01:27]} Nb3 {[%emt 0:00:10]} 73. Ra2 {[%emt 0:01:06]} Nxd4 {[%emt 0:00:09]} 74. cxd4 {[%emt 0:00:02]} Kxd4 {[%emt 0:00:14]} 75. Kf2 {[%emt 0:00:48]} Kd3 {[%emt 0:01:29]} 76. Kg2 {[%emt 0:00:20]} Kxe4 {[%emt 0:00:12]} 77. Kf2 {[%emt 0:00:02]} Kd3 {[%emt 0:00:08]} 78. Kg2 {[%emt 0:00:29]} Kc3 {[%emt 0:00:07]} 79. Kf2 {[%emt 0:00:50]} Kb3 {[%emt 0:00:15]} 80. Ra1 {[%emt 0:00:04]} a2 {[%emt 0:00:12]} 81. Ke3 {[%emt 0:00:19]} Kb2 {[%emt 0:00:21]} 0-1

[Event "26th OIBM 2023"]
[Site "Gmund am Tegernsee"]
[Date "2023.11.04"]
[Round "8.37"]
[White "Schuster, Karsten"]
[Black "Semprun Martinez, Fernando"]
[Result "1/2-1/2"]
[ECO "D99"]
[WhiteElo "2309"]
[BlackElo "2064"]
[Annotator "ChessBase"]
[PlyCount "121"]
[EventDate "2023.10.04"]
[EventType "swiss"]
[EventCountry "GER"]
[SourceTitle "playchess.com"]
[Source "ChessBase"]
[SourceQuality "1"]
[TimeControl "40/5400+30:1800+30"]

1. d4 {[%emt 0:00:01]} Nf6 {[%emt 0:00:03]} 2. c4 {[%emt 0:00:05]} g6 {[%emt 0:00:09]} 3. Nc3 {[%emt 0:00:05]} d5 {[%emt 0:00:06]} 4. Nf3 {[%emt 0:00:07]} Bg7 {[%emt 0:00:02]} 5. cxd5 {[%emt 0:00:07]} Nxd5 {[%emt 0:00:16]} 6. Qb3 {[%emt 0:00:04]} Nb6 {[%emt 0:02:23]} 7. e4 {[%emt 0:00:04]} O-O {[%emt 0:00:11]} 8. Be3 {[%emt 0:00:44]} Bg4 {[%emt 0:02:28]} 9. Rd1 {[%emt 0:02:42]} Nc6 {[%emt 0:01:09]} 10. d5 {[%emt 0:00:33]} Ne5 {[%emt 0:00:02]} 11. Be2 {[%emt 0:00:25]} Nxf3+ {[%emt 0:00:03]} 12. gxf3 {[%emt 0:00:13]} Bh5 {[%emt 0:00:01]} 13. a4 {[%emt 0:00:19]} Qc8 {[%emt 0:05:09]} 14. h4 {[%emt 0:04:37]} Nd7 {[%emt 0:01:24]} 15. f4 {[%emt 0:09:34]} Bxe2 {[%emt 0:00:18]} 16. Nxe2 {[%emt 0:01:25]} c5 {[%emt 0:06:48]} 17. Rc1 {[%emt 0:04:18]} b6 {[%emt 0:00:55]} 18. h5 {[%emt 0:03:12]} Nf6 {[%emt 0:06:32]} 19. hxg6 {[%emt 0:00:56]} hxg6 {[%emt 0:01:35]} 20. f3 {[%emt 0:05:36]} e6 {[%emt 0:05:19]} 21. d6 {[%emt 0:12:24]} Qc6 {[%emt 0:00:51]} 22. e5 {[%emt 0:01:40]} Qxf3 {[%emt 0:07:40]} 23. Rf1 {[%emt 0:00:20]} Qd5 {[%emt 0:00:27]} 24. Qc2 {[%emt 0:10:52]} Ng4 {[%emt 0:03:00]} 25. Bg1 {[%emt 0:05:49]} Nxe5 {[%emt 0:07:42]} 26. fxe5 {[%emt 0:00:53]} Qxe5 {[%emt 0:00:15]} 27. b4 {[%emt 0:08:26]} cxb4 {[%emt 0:04:35]} 28. Rd1 {[%emt 0:04:38]} Rad8 {[%emt 0:01:57]} 29. d7 {[%emt 0:00:31]} Qa5 {[%emt 0:06:09]} 30. Qb3 {[%emt 0:09:30]} b5 {[%emt 0:01:59]} 31. Bc5 {[%emt 0:01:20]} bxa4 {[%emt 0:00:12]} 32. Qxb4 {[%emt 0:00:10]} Qc7 {[%emt 0:02:53]} 33. Bxf8 Bxf8 {[%emt 0:00:01]} 34. Qf4 {[%emt 0:01:26]} Rxd7 {[%emt 0:00:50]} 35. Qxc7 Rxc7 {[%emt 0:00:00]} 36. Rf4 {[%emt 0:02:31]} a3 {[%emt 0:00:26]} 37. Ra4 {[%emt 0:01:21]} a5 {[%emt 0:00:19]} 38. Rd8 {[%emt 0:01:51]} Kg7 {[%emt 0:00:12]} 39. Kd1 {[%emt 0:00:15]} Bb4 {[%emt 0:00:20]} 40. Nd4 {[%emt 0:00:15]} Be7 {[%emt 0:10:39]} 41. Ra8 {[%emt 0:34:53]} Rd7 {[%emt 0:30:23]} 42. Kc1 {[%emt 0:01:02]} Bf6 {[%emt 0:05:52]} 43. Nb5 {[%emt 0:03:27]} Bb2+ {[%emt 0:05:29]} 44. Kc2 {[%emt 0:00:38]} g5 {[%emt 0:01:48]} 45. Nxa3 {[%emt 0:00:00]} Bxa3 {[%emt 0:00:00]} 46. Rxa3 {[%emt 0:00:00]} f5 {[%emt 0:00:00]} 47. R3xa5 {[%emt 0:00:00]} Rd4 {[%emt 0:00:00]} 48. R5a6 {[%emt 0:00:00]} Kf6 {[%emt 0:00:00]} 49. Rf8+ {[%emt 0:00:00]} Ke5 {[%emt 0:00:00]} 50. Re8 {[%emt 0:00:00]} Kf4 {[%emt 0:00:00]} 51. Rexe6 {[%emt 0:00:00]} Rd5 {[%emt 0:00:00]} 52. Rad6 {[%emt 0:00:00]} Rc5+ {[%emt 0:00:00]} 53. Kd2 {[%emt 0:00:00]} g4 {[%emt 0:00:00]} 54. Ke2 {[%emt 0:00:00]} Kg3 {[%emt 0:00:00]} 55. Kf1 {[%emt 0:00:00]} f4 {[%emt 0:00:00]} 56. Rd1 {[%emt 0:00:00]} f3 {[%emt 0:00:00]} 57. Red6 {[%emt 0:00:00]} Rh5 {[%emt 0:00:00]} 58. Ke1 {[%emt 0:00:00]} Kg2 {[%emt 0:03:51]} 59. R1d2+ {[%emt 0:00:00]} Kg3 {[%emt 0:03:13]} 60. Rd1 {[%emt 0:03:28]} Kg2 {[%emt 0:06:33]} 61. R1d2+ {[%emt 0:00:12]} 1/2-1/2

[Event "26th OIBM 2023"]
[Site "Gmund am Tegernsee"]
[Date "2023.11.04"]
[Round "8.38"]
[White "Karsay, Pascal"]
[Black "Jerie, Sven"]
[Result "1/2-1/2"]
[ECO "C55"]
[WhiteElo "2301"]
[BlackElo "2055"]
[Annotator "ChessBase"]
[PlyCount "77"]
[EventDate "2023.10.04"]
[EventType "swiss"]
[EventCountry "GER"]
[SourceTitle "playchess.com"]
[Source "ChessBase"]
[SourceQuality "1"]
[TimeControl "40/5400+30:1800+30"]

1. e4 {[%emt 0:00:03]} e5 {[%emt 0:00:16]} 2. Nf3 {[%emt 0:00:10]} Nc6 {[%emt 0:00:24]} 3. Bc4 {[%emt 0:00:10]} Nf6 {[%emt 0:00:32]} 4. d3 {[%emt 0:00:20]} Be7 {[%emt 0:00:54]} 5. O-O {[%emt 0:00:30]} O-O {[%emt 0:00:43]} 6. Nc3 {[%emt 0:00:30]} d6 {[%emt 0:01:21]} 7. a4 {[%emt 0:01:40]} Na5 {[%emt 0:10:31]} 8. Ba2 {[%emt 0:00:20]} c5 {[%emt 0:00:45]} 9. Bg5 {[%emt 0:00:30]} Be6 {[%emt 0:09:29]} 10. Bxf6 {[%emt 0:02:20]} Bxf6 {[%emt 0:02:30]} 11. Nd5 {[%emt 0:00:20]} Nc6 {[%emt 0:01:20]} 12. Qd2 {[%emt 0:02:20]} Rb8 {[%emt 0:11:47]} 13. h3 {[%emt 0:05:10]} h6 {[%emt 0:04:24]} 14. c3 {[%emt 0:02:20]} Kh7 {[%emt 0:04:34]} 15. b4 {[%emt 0:04:10]} b6 {[%emt 0:05:19]} 16. b5 {[%emt 0:03:50]} Na5 {[%emt 0:01:29]} 17. Ne3 {[%emt 0:04:40]} Bg5 {[%emt 0:05:13]} 18. Nxg5+ {[%emt 0:08:50]} Qxg5 {[%emt 0:01:54]} 19. Bxe6 {[%emt 0:00:10]} fxe6 {[%emt 0:00:13]} 20. Rad1 {[%emt 0:04:10]} Rbd8 {[%emt 0:09:31]} 21. Qa2 {[%emt 0:03:20]} Qg6 {[%emt 0:05:51]} 22. Rfe1 {[%emt 0:02:30]} Rf3 {[%emt 0:02:05]} 23. Kh1 {[%emt 0:03:40]} Rf4 {[%emt 0:00:16]} 24. f3 {[%emt 0:01:40]} Rdf8 {[%emt 0:06:20]} 25. Rf1 {[%emt 0:00:20]} R4f6 {[%emt 0:07:43]} 26. Qd2 {[%emt 0:06:20]} Qh5 {[%emt 0:00:44]} 27. Qe2 {[%emt 0:02:50]} Rg6 {[%emt 0:01:25]} 28. d4 {[%emt 0:07:40]} exd4 {[%emt 0:00:42]} 29. cxd4 {[%emt 0:01:30]} Nb3 {[%emt 0:00:50]} 30. dxc5 {[%emt 0:03:33]} dxc5 {[%emt 0:00:07]} 31. Rd7 {[%emt 0:01:45]} Nd4 {[%emt 0:00:18]} 32. Qd1 {[%emt 0:03:09]} Qg5 {[%emt 0:03:42]} 33. Ng4 {[%emt 0:14:46]} h5 {[%emt 0:00:27]} 34. h4 {[%emt 0:00:03]} Qxh4+ {[%emt 0:00:29]} 35. Nh2 {[%emt 0:00:04]} Qg3 {[%emt 0:00:45]} 36. Qd2 {[%emt 0:00:13]} Qb8 {[%emt 0:02:13]} 37. Qf2 {[%emt 0:02:25]} Rd8 {[%emt 0:00:14]} 38. Re7 {[%emt 0:00:42]} Re8 {[%emt 0:00:20]} 39. Rd7 {[%emt 0:01:17]} 1/2-1/2

[Event "26th OIBM 2023"]
[Site "Gmund am Tegernsee"]
[Date "2023.11.04"]
[Round "8.39"]
[White "Hrebenshchykova, Yelyzaveta"]
[Black "Mueller-Dehn, Christian"]
[Result "1-0"]
[ECO "C41"]
[WhiteElo "2299"]
[BlackElo "2051"]
[Annotator "ChessBase"]
[PlyCount "83"]
[EventDate "2023.10.04"]
[EventType "swiss"]
[EventCountry "GER"]
[SourceTitle "playchess.com"]
[Source "ChessBase"]
[SourceQuality "1"]
[TimeControl "40/5400+30:1800+30"]

1. e4 {[%emt 0:00:03]} d6 {[%emt 0:00:18]} 2. d4 {[%emt 0:00:14]} Nf6 {[%emt 0:00:05]} 3. Nc3 {[%emt 0:00:07]} e5 {[%emt 0:00:12]} 4. Nf3 {[%emt 0:00:05]} Nbd7 {[%emt 0:00:09]} 5. Rg1 {[%emt 0:00:10]} c6 {[%emt 0:00:45]} 6. g4 {[%emt 0:00:27]} h6 {[%emt 0:00:25]} 7. Be3 {[%emt 0:15:56]} b5 {[%emt 0:08:51]} 8. a3 {[%emt 0:01:31]} Bb7 {[%emt 0:01:53]} 9. h4 {[%emt 0:03:58]} Qc7 {[%emt 0:19:38]} 10. g5 {[%emt 1:12:59]} hxg5 {[%emt 0:00:44]} 11. hxg5 {[%emt 0:00:00]} Ng8 {[%emt 0:00:59]} 12. Qd2 {[%emt 0:00:00]} Ne7 {[%emt 0:06:55]} 13. O-O-O {[%emt 0:00:00]} a6 {[%emt 0:02:36]} 14. Rg3 {[%emt 0:00:00]} Ng6 {[%emt 0:13:57]} 15. Bh3 {[%emt 0:00:00]} Rd8 {[%emt 0:02:48]} 16. Bf5 {[%emt 0:00:00]} Be7 {[%emt 0:04:22]} 17. Bxg6 {[%emt 0:00:00]} fxg6 {[%emt 0:00:02]} 18. d5 {[%emt 0:00:00]} c5 {[%emt 0:01:18]} 19. Rgg1 {[%emt 0:00:00]} Rh3 {[%emt 0:08:39]} 20. Qe2 {[%emt 0:00:00]} b4 {[%emt 0:01:24]} 21. Nb1 {[%emt 0:00:00]} Rc8 {[%emt 0:03:57]} 22. Nfd2 {[%emt 0:00:00]} a5 {[%emt 0:02:20]} 23. Rh1 {[%emt 0:00:00]} Rxh1 {[%emt 0:01:11]} 24. Rxh1 {[%emt 0:00:00]} c4 {[%emt 0:00:29]} 25. Rh8+ {[%emt 0:00:00]} Nf8 {[%emt 0:01:21]} 26. c3 {[%emt 0:00:00]} Ba6 {[%emt 0:02:09]} 27. Qg4 {[%emt 0:00:00]} Qd7 {[%emt 0:03:26]} 28. Qxd7+ {[%emt 0:00:54]} Kxd7 {[%emt 0:00:01]} 29. axb4 {[%emt 0:00:10]} axb4 {[%emt 0:00:11]} 30. cxb4 {[%emt 0:00:04]} Rb8 {[%emt 0:00:15]} 31. Kc2 {[%emt 0:02:28]} Rxb4 {[%emt 0:00:20]} 32. Na3 {[%emt 0:00:09]} Ke8 {[%emt 0:04:02]} 33. Kc3 {[%emt 0:00:50]} Rb7 {[%emt 0:00:20]} 34. Ndxc4 {[%emt 0:00:29]} Kf7 {[%emt 0:00:32]} 35. b4 {[%emt 0:00:38]} Nd7 {[%emt 0:03:53]} 36. Ra8 {[%emt 0:02:03]} Bxc4 {[%emt 0:01:04]} 37. Nxc4 {[%emt 0:00:04]} Nf8 {[%emt 0:00:58]} 38. Na5 {[%emt 0:02:23]} Rc7+ {[%emt 0:00:36]} 39. Nc6 {[%emt 0:00:04]} Nh7 {[%emt 0:00:29]} 40. b5 {[%emt 0:00:05]} Nxg5 {[%emt 0:03:30]} 41. Bxg5 {[%emt 0:30:29]} Bxg5 {[%emt 0:30:01]} 42. b6 {[%emt 0:00:09]} 1-0

[Event "26th OIBM 2023"]
[Site "Gmund am Tegernsee"]
[Date "2023.11.04"]
[Round "8.41"]
[White "Barthel, Ansgar"]
[Black "Bettalli, Francesco"]
[Result "0-1"]
[ECO "A37"]
[WhiteElo "2056"]
[BlackElo "2274"]
[Annotator "ChessBase"]
[PlyCount "106"]
[EventDate "2023.10.04"]
[EventType "swiss"]
[EventCountry "GER"]
[SourceTitle "playchess.com"]
[Source "ChessBase"]
[SourceQuality "1"]
[TimeControl "40/5400+30:1800+30"]

1. Nf3 {[%emt 0:00:04]} g6 {[%emt 0:00:10]} 2. g3 {[%emt 0:00:20]} Bg7 {[%emt 0:00:08]} 3. Bg2 {[%emt 0:00:06]} c5 {[%emt 0:00:08]} 4. c4 {[%emt 0:00:34]} Nc6 {[%emt 0:00:09]} 5. Nc3 {[%emt 0:00:15]} d6 {[%emt 0:00:06]} 6. O-O {[%emt 0:00:24]} e6 {[%emt 0:00:16]} 7. d3 {[%emt 0:01:38]} Nge7 {[%emt 0:00:07]} 8. Bd2 {[%emt 0:03:30]} O-O {[%emt 0:00:14]} 9. e3 {[%emt 0:23:11]} Rb8 {[%emt 0:01:09]} 10. Rb1 {[%emt 0:04:41]} b6 {[%emt 0:00:08]} 11. a3 {[%emt 0:01:53]} Bb7 {[%emt 0:00:05]} 12. b4 {[%emt 0:01:18]} Qd7 {[%emt 0:00:05]} 13. Qe2 {[%emt 0:01:53]} h6 {[%emt 0:00:39]} 14. Rfd1 {[%emt 0:01:58]} e5 {[%emt 0:01:55]} 15. Ne1 {[%emt 0:03:00]} Rbe8 {[%emt 0:03:42]} 16. b5 {[%emt 0:15:10]} Nd8 {[%emt 0:00:19]} 17. Bxb7 {[%emt 0:01:17]} Qxb7 {[%emt 0:00:04]} 18. Qf3 {[%emt 0:06:07]} Qd7 {[%emt 0:00:17]} 19. Nd5 {[%emt 0:00:30]} f5 {[%emt 0:00:44]} 20. Ng2 {[%emt 0:01:42]} Ne6 {[%emt 0:00:27]} 21. Nxe7+ {[%emt 0:01:25]} Rxe7 {[%emt 0:00:10]} 22. Qd5 {[%emt 0:00:48]} Kh7 {[%emt 0:00:12]} 23. f4 {[%emt 0:02:50]} Nc7 {[%emt 0:05:40]} 24. Qb7 {[%emt 0:05:34]} Ra8 {[%emt 0:00:05]} 25. a4 {[%emt 0:04:29]} Qe8 {[%emt 0:00:28]} 26. Qc6 {[%emt 0:01:55]} Qxc6 {[%emt 0:00:46]} 27. bxc6 {[%emt 0:00:06]} Rb8 {[%emt 0:01:09]} 28. Rb3 {[%emt 0:01:22]} Na6 {[%emt 0:02:02]} 29. fxe5 {[%emt 0:04:37]} dxe5 {[%emt 0:00:23]} 30. e4 {[%emt 0:00:15]} Rc7 {[%emt 0:03:03]} 31. Ne3 {[%emt 0:02:01]} Rxc6 {[%emt 0:01:17]} 32. exf5 {[%emt 0:03:19]} Nc7 {[%emt 0:00:05]} 33. fxg6+ {[%emt 0:01:04]} Kxg6 {[%emt 0:00:38]} 34. a5 {[%emt 0:03:24]} Rd6 {[%emt 0:00:05]} 35. axb6 {[%emt 0:00:29]} axb6 {[%emt 0:00:14]} 36. Rdb1 {[%emt 0:01:07]} e4 {[%emt 0:00:18]} 37. Nd5 {[%emt 0:00:50]} Nxd5 {[%emt 0:00:06]} 38. cxd5 {[%emt 0:00:04]} Bd4+ {[%emt 0:00:11]} 39. Kg2 {[%emt 0:00:13]} e3 {[%emt 0:01:07]} 40. Be1 {[%emt 0:02:49]} Kg5 {[%emt 0:02:16]} 41. Kf3 {[%emt 0:31:30]} Rf8+ {[%emt 0:31:15]} 42. Ke2 {[%emt 0:00:50]} Rff6 {[%emt 0:00:23]} 43. g4 {[%emt 0:00:00]} Kxg4 {[%emt 0:00:00]} 44. Bg3 {[%emt 0:00:00]} Rxd5 {[%emt 0:00:00]} 45. Rxb6 {[%emt 0:00:00]} Rdf5 {[%emt 0:00:00]} 46. Rxf6 {[%emt 0:00:00]} Rxf6 {[%emt 0:00:00]} 47. Rg1 {[%emt 0:00:00]} Ra6 {[%emt 0:00:00]} 48. Bc7+ {[%emt 0:00:00]} Kf5 {[%emt 0:00:00]} 49. Rf1+ {[%emt 0:00:00]} Ke6 {[%emt 0:00:00]} 50. Bf4 {[%emt 0:00:00]} Kd5 {[%emt 0:00:00]} 51. Bxe3 {[%emt 0:00:00]} Ra2+ {[%emt 0:00:00]} 52. Bd2 {[%emt 0:00:00]} Bc3 {[%emt 0:00:00]} 53. Rd1 {[%emt 0:00:00]} Kd4 {[%emt 0:00:00]} 0-1

[Event "26th OIBM 2023"]
[Site "Gmund am Tegernsee"]
[Date "2023.11.04"]
[Round "8.42"]
[White "Ahlberg, Mario"]
[Black "Neukirchner, Pascal"]
[Result "0-1"]
[ECO "B22"]
[WhiteElo "2011"]
[BlackElo "2265"]
[Annotator "ChessBase"]
[PlyCount "132"]
[EventDate "2023.10.04"]
[EventType "swiss"]
[EventCountry "GER"]
[SourceTitle "playchess.com"]
[Source "ChessBase"]
[SourceQuality "1"]
[TimeControl "40/5400+30:1800+30"]

1. e4 {[%emt 0:00:01]} c5 {[%emt 0:00:11]} 2. Nf3 {[%emt 0:00:02]} Nc6 {[%emt 0:00:30]} 3. Bb5 {[%emt 0:00:03]} e5 {[%emt 0:00:19]} 4. c3 {[%emt 0:00:09]} a6 {[%emt 0:00:15]} 5. Ba4 {[%emt 0:00:02]} b5 {[%emt 0:00:10]} 6. Bc2 {[%emt 0:00:01]} d5 {[%emt 0:00:27]} 7. a4 {[%emt 0:01:22]} b4 {[%emt 0:00:12]} 8. d3 {[%emt 0:03:25]} Nf6 {[%emt 0:05:16]} 9. Bg5 {[%emt 0:04:34]} dxe4 {[%emt 0:08:20]} 10. dxe4 {[%emt 0:02:20]} Qxd1+ {[%emt 0:00:44]} 11. Kxd1 {[%emt 0:00:02]} c4 {[%emt 0:20:48]} 12. cxb4 {[%emt 0:16:22]} Bg4 {[%emt 0:16:04]} 13. Nbd2 {[%emt 0:08:13]} Bxb4 {[%emt 0:03:36]} 14. h3 {[%emt 0:02:53]} Bxd2 {[%emt 0:12:43]} 15. Kxd2 {[%emt 0:03:11]} O-O-O+ {[%emt 0:01:56]} 16. Kc3 {[%emt 0:01:42]} Bxf3 {[%emt 0:00:33]} 17. gxf3 {[%emt 0:00:03]} Nd4 {[%emt 0:00:28]} 18. Rhd1 {[%emt 0:20:03]} Nxf3 {[%emt 0:08:48]} 19. Be3 {[%emt 0:01:24]} Kb7 {[%emt 0:00:52]} 20. Kxc4 {[%emt 0:01:20]} Rc8+ {[%emt 0:04:46]} 21. Kb3 {[%emt 0:03:08]} Rc6 {[%emt 0:00:01]} 22. Rac1 {[%emt 0:03:10]} Rhc8 {[%emt 0:00:15]} 23. Bd3 {[%emt 0:01:39]} Nd4+ {[%emt 0:00:31]} 24. Ka3 {[%emt 0:04:58]} Nc2+ {[%emt 0:01:30]} 25. Rxc2 {[%emt 0:00:16]} Rxc2 {[%emt 0:00:02]} 26. Bxc2 {[%emt 0:00:10]} Rxc2 {[%emt 0:00:01]} 27. Kb3 {[%emt 0:03:18]} Rc6 {[%emt 0:00:35]} 28. f3 {[%emt 0:00:26]} Kc7 {[%emt 0:03:13]} 29. Ka2 {[%emt 0:02:01]} Ne8 {[%emt 0:01:14]} 30. Rc1 {[%emt 0:00:41]} Nd6 {[%emt 0:00:37]} 31. Rxc6+ {[%emt 0:03:07]} Kxc6 {[%emt 0:00:30]} 32. Ka3 {[%emt 0:00:30]} Kc7 {[%emt 0:00:01]} 33. b3 {[%emt 0:00:30]} Kc6 {[%emt 0:00:30]} 34. Kb4 {[%emt 0:02:07]} Nb7 {[%emt 0:00:02]} 35. Kc4 {[%emt 0:01:08]} g6 {[%emt 0:00:52]} 36. b4 {[%emt 0:02:14]} Nd6+ {[%emt 0:00:02]} 37. Kd3 {[%emt 0:00:33]} f5 {[%emt 0:01:46]} 38. Bh6 {[%emt 0:00:21]} Nf7 {[%emt 0:03:10]} 39. Bf8 {[%emt 0:08:02]} Ng5 {[%emt 0:00:30]} 40. exf5 {[%emt 0:00:30]} gxf5 {[%emt 0:00:14]} 41. Kc4 {[%emt 0:06:52]} Nxf3 {[%emt 0:02:03]} 42. Bh6 {[%emt 0:01:54]} Nd4 {[%emt 0:15:00]} 43. Bg7 {[%emt 0:04:47]} Kd6 {[%emt 0:01:47]} 44. Bf8+ {[%emt 0:00:57]} Ke6 {[%emt 0:00:36]} 45. Bc5 {[%emt 0:02:29]} Nc6 {[%emt 0:03:10]} 46. Bb6 {[%emt 0:06:03]} f4 {[%emt 0:05:42]} 47. b5 {[%emt 0:01:32]} axb5+ {[%emt 0:00:02]} 48. axb5 {[%emt 0:01:55]} Ne7 {[%emt 0:00:36]} 49. Bc5 {[%emt 0:02:13]} Nc8 {[%emt 0:00:27]} 50. Bg1 {[%emt 0:02:17]} Nd6+ {[%emt 0:02:19]} 51. Kc5 {[%emt 0:00:05]} e4 {[%emt 0:01:08]} 52. Kd4 {[%emt 0:02:33]} Kf5 {[%emt 0:02:34]} 53. b6 {[%emt 0:00:01]} Nb7 {[%emt 0:00:16]} 54. Bf2 {[%emt 0:01:11]} Na5 {[%emt 0:02:44]} 55. Be1 {[%emt 0:00:53]} Nb7 {[%emt 0:02:18]} 56. Bf2 {[%emt 0:01:05]} f3 {[%emt 0:00:17]} 57. Be3 {[%emt 0:00:27]} Na5 {[%emt 0:00:59]} 58. Kd5 {[%emt 0:00:27]} h5 {[%emt 0:00:48]} 59. Kd4 {[%emt 0:00:17]} Nb7 {[%emt 0:00:40]} 60. Kd5 {[%emt 0:00:03]} Na5 {[%emt 0:00:26]} 61. Kc5 {[%emt 0:01:11]} Ke5 {[%emt 0:01:55]} 62. h4 {[%emt 0:01:53]} Ke6 {[%emt 0:01:05]} 63. Kd4 {[%emt 0:00:08]} Kf5 {[%emt 0:00:06]} 64. Bg1 {[%emt 0:01:28]} Kf4 {[%emt 0:01:14]} 65. Bh2+ {[%emt 0:00:04]} Kg4 {[%emt 0:00:10]} 66. Bg1 Kxh4 0-1